bitfinex-derivatives/quotes_ETHF0:USTF0_20250205
["timestamp","ask_amount","ask_price","bid_price","bid_amount"]
[1738758897912,0.5516,2788.5,2787.7,5.73276635]
[1738758898116,3.2078,2788.3,2787.7,0.5305]
[1738758898418,3.2078,2788.3,2787.4,3.2078]
[1738758898811,3.2078,2788.3,2787.5,4.62581985]
[1738758901717,3.2078,2788.3,2787.9,2.4276056]
[1738758901924,0.5516,2788.5,2787.9,2.4276056]
[1738758902424,3.7594,2788.5,2788.0,4.64915441]
[1738758902721,3.2078,2788.2,2788.0,4.64915441]
[1738758902920,3.7594,2788.5,2787.6,2.4276056]
[1738758905013,3.2078,2788.2,2787.4,3.2078]
[1738758905711,3.2078,2788.2,2787.6,2.4276056]
[1738758905916,3.7594,2788.5,2787.7,3.2078]
[1738758906118,3.2078,2788.5,2787.9,2.4276056]
[1738758906316,3.2078,2788.5,2788.0,0.5792]
[1738758906519,3.2078,2788.5,2788.0,1.1128]
[1738758906919,3.2078,2788.5,2788.0,5.85882323]
[1738758907121,3.2078,2788.5,2788.0,4.74602323]
[1738758907621,3.2078,2788.5,2787.7,3.2078]
[1738758909220,3.2078,2788.5,2787.9,0.00287817]
[1738758909430,3.2078,2788.2,2787.9,0.00287817]
[1738758909621,1.1123,2788.1,2787.9,0.00287817]
[1738758910326,40.8,2788.7,2787.9,0.00287817]
[1738758910327,3.2078,2788.5,2787.9,0.00287817]
[1738758910529,3.2078,2788.5,2787.9,2.43048377]
[1738758911023,3.2078,2788.5,2788.2,2.4276056]
[1738758914224,3.2078,2788.5,2788.3,4.72728092]
[1738758915033,3.2078,2788.5,2788.1,0.5318]
[1738758915223,3.2078,2788.2,2787.9,0.00287817]
[1738758915528,5.6354056,2788.2,2787.9,0.00287817]
[1738758915729,0.5805,2788.1,2787.9,0.00287817]
[1738758916432,0.5805,2788.1,2787.1,3.2078]
[1738758916633,3.2078,2787.8,2787.1,3.2078]
[1738758916826,3.2078,2787.5,2786.8,4.37416782]
[1738758917022,3.2078,2786.9,2786.3,2.4276056]
[1738758917229,0.5481,2786.8,2786.3,2.4276056]
[1738758918234,3.2078,2786.9,2786.3,2.4276056]
[1738758918235,3.2078,2786.9,2786.4,4.68389081]
[1738758918434,3.2078,2786.9,2786.4,5.84099081]
[1738758918638,3.2078,2786.9,2786.6,2.4276056]
[1738758919026,0.5481,2787.3,2786.7,4.65560417]
[1738758919237,0.5481,2787.3,2786.9,2.4276056]
[1738758919436,0.5481,2787.3,2786.7,4.65560417]
[1738758920336,3.2078,2786.9,2786.7,4.65560417]
[1738758920530,3.2078,2786.9,2785.7,3.5342056]
[1738758920531,0.5425,2786.8,2785.7,3.5342056]
[1738758920730,3.2078,2786.4,2785.8,3.2078]
[1738758920936,3.2078,2786.4,2785.7,1.1066]
[1738758921235,3.2078,2787.1,2786.1,6.25377931]
[1738758921531,3.2078,2787.1,2786.1,3.04597931]
[1738758921728,1.0982,2787.3,2786.2,4.67871674]
[1738758921729,3.2078,2786.8,2786.2,4.67871674]
[1738758921931,1.1007,2786.7,2786.2,4.67871674]
[1738758922133,0.5557,2786.6,2786.2,4.67871674]
[1738758922538,0.5557,2786.6,2786.0,3.2078]
[1738758922741,0.5557,2786.6,2786.1,3.04597931]
[1738758923138,0.5557,2786.6,2786.1,7.71349108]
[1738758926238,3.2078,2787.0,2786.4,3.04597931]
[1738758926438,0.5621,2787.1,2786.5,1.1115]
[1738758927336,0.5621,2787.1,2786.5,5.85295537]
[1738758927541,3.2078,2787.0,2786.5,4.74145537]
[1738758928433,3.2078,2787.0,2786.3,3.2078]
[1738758929751,3.2078,2787.0,2786.4,7.73311596]
[1738758930046,3.2078,2787.0,2786.4,10.94091596]
[1738758931748,3.2078,2787.0,2786.7,3.04597931]
[1738758933861,3.2078,2787.0,2786.5,0.5455]
[1738758934049,3.2078,2787.0,2786.2,3.2078]
[1738758934249,3.2078,2787.0,2786.1,3.58377931]
[1738758934549,3.2078,2786.6,2785.9,3.2078]
[1738758934755,1.1256,2786.5,2785.9,3.2078]
[1738758936554,1.1256,2786.5,2786.0,4.60441985]
[1738758938163,1.1256,2786.5,2785.9,3.2078]
[1738758938561,3.2078,2786.0,2785.5,3.2078]
[1738758938862,0.5747,2785.9,2785.5,3.2078]
[1738758939258,3.21317519,2786.0,2785.5,3.2078]
[1738758939864,3.21317519,2786.0,2785.2,6.25377931]
[1738758940464,3.21317519,2786.0,2785.3,4.59575548]
[1738758940660,0.00537519,2786.0,2785.3,4.59575548]
[1738758941165,0.00537519,2786.0,2785.2,6.25377931]
[1738758941360,3.21317519,2786.0,2785.2,6.25377931]
[1738758941967,3.2078,2785.7,2785.2,6.25377931]
[1738758942368,44.0078,2785.7,2785.2,6.25377931]
[1738758942566,44.0078,2785.7,2784.8,1.5102]
[1738758942567,3.2078,2785.3,2784.9,3.04597931]
[1738758942867,3.2078,2785.3,2784.6,3.04597931]
[1738758943167,3.2078,2785.0,2784.5,0.3592]
[1738758943364,3.2078,2785.0,2784.4,0.3592]
[1738758943558,3.2078,2785.3,2784.6,6.25377931]
[1738758943763,3.2078,2785.0,2784.4,0.3592]
[1738758943960,1.6147,2784.9,2784.0,3.2078]
[1738758944170,1.6147,2784.9,2784.2,3.04597931]
[1738758944365,1.6147,2784.9,2784.3,7.83189556]
[1738758944868,1.6147,2784.9,2784.2,3.04597931]
[1738758945372,1.6147,2784.9,2784.3,7.81902668]
[1738758946058,1.6147,2784.9,2784.3,3.2078]
[1738758947069,1.6147,2784.9,2784.0,3.2078]
[1738758948062,3.2078,2784.7,2784.0,3.2078]
[1738758948265,3.2078,2784.1,2783.2,3.2078]
[1738758948462,3.2078,2783.8,2783.0,3.04597931]
[1738758948872,3.2078,2783.8,2783.3,3.04597931]
[1738758949369,3.2078,2783.5,2783.2,4.58618385]
[1738758949575,3.2078,2783.5,2783.1,4.58618385]
[1738758949874,3.2078,2783.2,2782.7,3.04597931]
[1738758950076,3.2078,2783.2,2782.5,3.2078]
[1738758950474,0.5707,2783.1,2782.5,3.2078]
[1738758951279,3.2078,2783.6,2782.8,3.2078]
[1738758951669,3.2078,2783.6,2783.0,3.04597931]
[1738758952274,3.2078,2783.6,2783.0,3.58857931]
[1738758952574,3.2078,2783.6,2783.1,4.59395256]
[1738758953574,3.2078,2783.7,2783.1,4.59395256]
[1738758953878,3.2078,2783.7,2783.1,8.35195256]
[1738758954277,3.2078,2783.4,2782.6,3.2078]
[1738758954472,3.2078,2783.4,2782.9,3.2078]
[1738758954674,3.2078,2783.4,2783.0,3.04597931]
[1738758954874,0.00538513,2783.9,2783.2,3.2078]
[1738758955779,0.00538513,2783.9,2783.3,5.19577156]
[1738758956772,0.00538513,2783.9,2783.5,3.2078]
[1738758957578,0.00538513,2783.9,2783.6,0.5557]
[1738758957786,0.00538513,2783.9,2783.6,5.22788693]
[1738758959881,0.00538513,2783.9,2783.8,3.2078]
[1738758960075,0.00538513,2783.9,2783.6,5.22788693]
[1738758960276,0.00538513,2783.9,2783.6,4.67218693]
[1738758960583,0.00538513,2783.9,2783.3,0.5404]
[1738758960584,3.21318513,2783.9,2783.0,3.04597931]
[1738758960785,0.5716,2783.8,2783.0,3.04597931]
[1738758961080,0.00538513,2783.9,2783.7,4.68314763]
[1738758962185,0.00538513,2783.9,2783.6,1.1191]
[1738758962788,0.00538513,2783.9,2783.7,4.60867095]
[1738758963483,0.00538513,2783.9,2783.7,3.2078]
[1738758964194,0.00538513,2783.9,2783.8,4.62842106]
[1738758965891,3.2078,2785.0,2783.8,9.62842106]
[1738758966089,3.2078,2785.0,2784.3,3.2078]
[1738758966588,3.2078,2785.0,2784.4,4.65244322]
[1738758967089,0.00538513,2785.0,2784.9,3.2078]
[1738758967385,3.2078,2786.0,2784.9,3.2078]
[1738758967688,3.2078,2786.0,2785.5,3.2078]
[1738758967891,3.2078,2786.0,2785.5,4.4678]
[1738758968195,44.0078,2786.2,2785.5,1.26]
[1738758968592,0.00538513,2786.1,2785.6,3.21318513]
[1738758968798,0.00538513,2786.1,2786.0,6.25377931]
[1738758969293,0.00538513,2786.1,2786.0,11.25377931]
[1738758969688,0.00538513,2786.1,2786.0,16.65727544]
[1738758970090,0.00538513,2786.1,2786.0,17.01647544]
[1738758970392,0.00538513,2786.1,2786.0,16.29885544]
[1738758970592,0.00538513,2786.1,2786.0,12.01647544]
[1738758970790,3.2078,2787.2,2786.0,16.29885544]
[1738758970986,3.04597931,2788.1,2786.0,16.29885544]
[1738758970987,3.2078,2788.0,2787.0,3.2078]
[1738758971188,3.7682,2788.3,2787.5,3.04597931]
[1738758971389,3.7682,2788.3,2787.6,3.2078]
[1738758971691,0.5338,2788.6,2788.1,6.25377931]
[1738758972091,0.00538513,2788.2,2788.1,6.25377931]
[1738758973092,0.00538513,2788.2,2787.8,6.25377931]
[1738758973293,0.00538513,2788.2,2788.1,4.68487226]
[1738758973884,0.00538513,2788.2,2788.1,7.73085157]
[1738758974093,0.00538513,2788.2,2788.1,10.93865157]
[1738758974691,0.00538513,2788.2,2788.1,6.25377931]
[1738758975100,0.00538513,2788.2,2787.8,6.25377931]
[1738758975695,0.00538513,2788.2,2787.9,4.72259913]
[1738758976491,40.8,2788.1,2787.9,4.72259913]
[1738758976696,40.8,2788.1,2787.8,3.2078]
[1738758976996,40.8,2788.1,2787.7,0.00538513]
[1738758977195,41.3595,2788.1,2787.7,0.00538513]
[1738758977402,3.2078,2787.9,2787.7,0.00538513]
[1738758977593,3.2078,2787.9,2787.0,3.2078]
[1738758977799,3.2078,2787.3,2786.6,3.2078]
[1738758978100,0.554,2787.2,2786.3,6.25377931]
[1738758978299,0.5828,2787.1,2786.3,6.25377931]
[1738758978501,3.2078,2787.0,2786.3,3.2078]
[1738758978701,3.2078,2787.0,2786.0,6.32556681]
[1738758978900,0.5828,2787.1,2786.4,0.00538513]
[1738758978901,3.2078,2786.9,2786.4,0.00538513]
[1738758979497,3.21318513,2786.9,2786.4,0.00538513]
[1738758979705,3.2078,2786.6,2786.0,3.2795875]
[1738758979898,3.2078,2786.5,2786.0,0.0717875]
[1738758980707,3.2078,2786.5,2785.4,6.25377931]
[1738758980903,3.2078,2786.5,2786.0,0.00538513]
[1738758981898,3.2078,2786.5,2786.0,7.81823342]
[1738758982305,3.2078,2786.5,2786.0,0.00538513]
[1738758982804,3.2078,2786.5,2785.8,4.76686898]
[1738758982999,3.2078,2786.1,2785.4,3.2078]
[1738758983506,3.2078,2786.5,2785.6,3.04597931]
[1738758983711,3.2078,2786.5,2785.7,3.2078]
[1738758983902,3.2078,2786.5,2785.7,7.89771423]
[1738758987308,3.2078,2786.2,2785.3,6.25377931]
[1738758987711,0.5774,2786.1,2785.5,4.76614946]
[1738758987900,0.5774,2786.1,2785.4,4.76614946]
[1738758988106,0.5774,2786.1,2785.3,6.25377931]
[1738758988306,0.5774,2786.1,2785.7,3.2078]
[1738758988509,0.5908,2786.4,2785.7,3.2078]
[1738758988917,0.5908,2786.4,2785.8,4.59025278]
[1738758990214,3.2078,2786.7,2785.9,6.25377931]
[1738758990803,3.2078,2786.7,2786.0,4.68212383]
[1738758991707,4.9445,2786.8,2786.0,4.68212383]
[1738758994513,4.9445,2786.8,2786.2,3.04597931]
[1738758994909,4.9445,2786.8,2786.3,4.63658498]
[1738758996411,3.2078,2786.8,2786.5,3.04597931]
[1738758996616,0.00538513,2786.9,2786.5,6.25377931]
[1738758996811,0.00538513,2786.9,2786.6,4.76948995]
[1738758998717,0.00538513,2786.9,2786.8,3.2078]
[1738758998923,0.00538513,2786.9,2786.6,4.76948995]
[1738758999409,0.00538513,2786.9,2786.5,7.81014914]
[1738758999611,0.00538513,2786.9,2786.8,4.76416983]
[1738759000116,5.00538513,2786.9,2786.7,0.55263966]
[1738759000318,3.2078,2786.8,2786.1,3.2078]
[1738759000516,3.2078,2786.8,2786.1,6.25377931]
[1738759000718,40.8,2786.7,2786.1,6.25377931]
[1738759001320,0.00538513,2786.9,2786.2,1.1358]
[1738759001618,3.2078,2786.8,2786.2,1.1358]
[1738759001819,40.8,2786.7,2786.2,1.1358]
[1738759002222,3.2078,2786.8,2786.2,1.1358]
[1738759002616,44.0078,2786.8,2786.2,1.1358]
[1738759002920,3.2078,2786.8,2786.2,1.1358]
[1738759005524,0.00538513,2786.9,2786.4,3.04597931]
[1738759005718,0.00538513,2786.9,2786.4,6.25377931]
[1738759006217,0.00538513,2786.9,2786.7,6.25377931]
[1738759006423,3.7664,2787.9,2786.8,1.272]
[1738759006621,3.7664,2787.9,2787.1,6.25377931]
[1738759007613,0.00538513,2787.8,2787.2,4.66930276]
[1738759008426,3.2078,2787.3,2787.2,4.66930276]
[1738759009025,3.2078,2787.6,2787.2,4.66930276]
[1738759009225,40.8,2787.5,2787.2,4.66930276]
[1738759009421,3.2078,2787.6,2787.2,0.00538513]
[1738759010323,0.5875,2787.5,2787.2,0.00538513]
[1738759010728,3.2078,2787.6,2787.2,0.00538513]
[1738759017024,0.00538513,2787.8,2787.2,0.00538513]
[1738759017526,40.8,2787.7,2787.2,0.00538513]
[1738759022027,3.2078,2787.3,2787.2,0.00538513]
[1738759022528,8.2078,2787.3,2786.2,0.5599]
[1738759022828,3.2078,2786.8,2786.2,0.5599]
[1738759023421,3.2078,2786.8,2786.1,3.04597931]
[1738759023624,45.1908,2787.2,2786.4,3.04597931]
[1738759024021,45.1908,2787.2,2786.4,3.64907931]
[1738759024226,45.1908,2787.2,2786.5,4.59411119]
[1738759024430,4.3908,2787.2,2786.5,4.59411119]
[1738759025932,3.2078,2786.9,2786.1,3.04597931]
[1738759026235,0.5754,2786.8,2786.1,3.04597931]
[1738759026430,0.5754,2786.8,2786.2,4.62723841]
[1738759027132,3.2078,2786.5,2785.6,3.2078]
[1738759027327,3.2078,2786.1,2785.3,3.2078]
[1738759027529,3.2078,2786.1,2785.5,3.04597931]
[1738759027729,0.00538513,2786.0,2785.5,3.04597931]
[1738759027932,0.00538513,2786.0,2785.6,4.70186745]
[1738759028732,0.00538513,2786.0,2785.6,7.90966745]
[1738759028936,0.00538513,2786.0,2785.7,0.5616]
[1738759029540,0.00538513,2786.0,2785.9,3.2078]
[1738759029835,3.2078,2786.6,2785.9,7.89011347]
[1738759030031,3.7959,2787.2,2786.5,3.2078]
[1738759030233,7.907,2789.9,2786.4,3.04597931]
[1738759030234,0.5549,2787.5,2786.8,3.2078]
[1738759030431,0.5549,2787.5,2787.0,3.04597931]
[1738759030836,0.56028513,2787.5,2787.0,0.00538513]
[1738759031039,0.56028513,2787.5,2787.1,4.74212981]
[1738759032530,1.16598513,2787.5,2787.1,4.74212981]
[1738759033645,0.61108513,2787.5,2787.1,4.74212981]
[1738759033935,0.00538513,2787.5,2787.1,7.94992981]
[1738759034343,0.00538513,2787.5,2787.3,3.04597931]
[1738759034740,0.00538513,2787.5,2787.4,5.16559203]
[1738759036038,0.00538513,2787.5,2787.4,3.7606]
[1738759036739,0.00538513,2787.5,2787.4,8.41534251]
[1738759037242,3.2078,2788.4,2787.4,13.41534251]
[1738759037541,3.2078,2789.4,2788.3,3.04597931]
[1738759037748,4.3684,2789.4,2788.6,6.25377931]
[1738759038042,3.2078,2789.1,2788.6,3.04597931]
[1738759038637,3.21318513,2789.1,2788.7,4.69069326]
[1738759039234,3.2078,2788.8,2788.6,0.00538513]
[1738759040346,4.31879931,2788.7,2787.6,3.2078]
[1738759040650,3.2078,2788.2,2787.6,3.2078]
[1738759040845,3.2078,2788.5,2787.4,3.04597931]
[1738759041154,3.2078,2788.5,2787.9,4.57389976]
[1738759041344,3.2078,2788.5,2787.7,7.61987907]
[1738759041544,3.2078,2788.5,2787.9,0.00538513]
[1738759041744,3.2078,2788.1,2787.9,0.00538513]
[1738759043649,44.0078,2788.1,2787.9,0.00538513]
[1738759043844,3.2078,2788.1,2787.9,0.00538513]
[1738759044241,3.2078,2788.5,2788.0,7.62577217]
[1738759044448,3.21318513,2789.1,2788.4,3.04597931]
[1738759044652,3.21318513,2789.1,2788.8,3.04597931]
[1738759044851,3.21318513,2789.1,2788.5,3.04597931]
[1738759045054,3.21318513,2789.1,2788.2,6.25377931]
[1738759045256,0.5615,2789.0,2788.2,6.25377931]
[1738759045547,0.5904,2788.9,2788.2,6.25377931]
[1738759045752,0.5904,2788.9,2788.3,4.61585919]
[1738759046749,0.5904,2788.9,2788.2,6.25377931]
[1738759047143,0.5904,2788.9,2788.4,4.57064896]
[1738759047354,0.5904,2788.9,2788.5,3.04597931]
[1738759047850,0.5904,2788.9,2788.6,4.57064896]
[1738759048553,3.21318513,2789.1,2788.6,4.57064896]
[1738759049448,3.21318513,2789.1,2788.5,3.04597931]
[1738759049644,3.21318513,2789.1,2788.2,6.25377931]
[1738759050650,3.21318513,2789.1,2788.6,4.60393876]
[1738759050956,3.21318513,2789.1,2788.4,4.60393876]
[1738759051343,3.21318513,2789.1,2788.2,6.25377931]
[1738759051753,3.21318513,2789.1,2788.5,4.75355087]
[1738759052253,3.21318513,2789.1,2788.5,7.79953018]
[1738759052457,0.00538513,2789.1,2788.5,6.25377931]
[1738759052652,0.00538513,2789.1,2788.6,4.62277325]
[1738759053154,0.00538513,2789.1,2788.8,3.04597931]
[1738759053756,0.00538513,2789.1,2788.9,4.67478567]
[1738759054657,0.00538513,2789.1,2788.8,1.1776]
[1738759055453,0.00538513,2789.1,2788.8,4.73643157]
[1738759055854,0.00538513,2789.1,2788.7,4.73643157]
[1738759056054,0.00538513,2789.1,2788.9,4.73643157]
[1738759056550,0.00538513,2789.1,2788.8,4.72225093]
[1738759056961,0.00538513,2789.1,2789.0,4.72225093]
[1738759057660,0.00538513,2789.1,2788.9,4.59362238]
[1738759058255,0.00538513,2789.1,2788.7,4.57121463]
[1738759058959,3.2078,2788.9,2788.7,4.57121463]
[1738759059361,0.5678,2788.8,2788.2,3.2078]
[1738759059551,3.2078,2788.6,2788.0,0.6123]
[1738759059756,3.2078,2788.6,2787.9,3.21318513]
[1738759059958,3.2078,2788.0,2787.9,0.00538513]
[1738759062365,4.3576,2788.0,2787.9,0.00538513]
[1738759069158,3.2078,2788.0,2787.9,0.00538513]
[1738759069562,1.1732,2788.7,2787.9,0.00538513]
[1738759069563,3.2078,2788.3,2787.9,0.00538513]
[1738759069759,3.2078,2788.6,2788.2,3.04597931]
[1738759069962,3.2078,2788.6,2788.5,3.04597931]
[1738759070165,3.21318513,2789.1,2788.5,3.04597931]
[1738759070362,0.00538513,2789.1,2788.8,3.04597931]
[1738759072277,0.00538513,2789.1,2788.5,7.92442037]
[1738759072278,0.00538513,2789.1,2788.5,6.25377931]
[1738759073470,0.00538513,2789.1,2788.8,3.04597931]
[1738759074177,0.00538513,2789.1,2788.9,4.72114974]
[1738759074576,0.00538513,2789.1,2788.7,4.59621727]
[1738759074779,0.00538513,2789.1,2788.8,3.04597931]
[1738759075171,0.00538513,2789.1,2788.8,7.68662415]
[1738759075371,0.00538513,2789.1,2788.8,3.04597931]
[1738759075874,0.00538513,2789.1,2788.5,6.25377931]
[1738759076571,0.00538513,2789.1,2788.6,4.69905802]
[1738759077767,0.00538513,2789.1,2788.5,6.25377931]
[1738759078980,0.00538513,2789.1,2788.5,3.04597931]
[1738759078981,3.2078,2788.8,2788.5,3.04597931]
[1738759079284,3.21318513,2789.1,2788.5,3.04597931]
[1738759079784,3.21318513,2789.1,2788.6,4.7453411]
[1738759080684,3.21318513,2789.1,2788.8,3.04597931]
[1738759081283,3.21318513,2789.1,2788.9,4.66635989]
[1738759081583,3.21318513,2789.1,2788.5,3.2078]
[1738759081788,3.21318513,2789.1,2788.6,4.70243776]
[1738759082480,3.21318513,2789.1,2788.5,6.25377931]
[1738759082783,3.21318513,2789.1,2788.5,3.2078]
[1738759082982,3.21318513,2789.1,2788.7,4.75861019]
[1738759083286,0.00538513,2789.1,2788.8,3.04597931]
[1738759083784,0.00538513,2789.1,2788.8,7.72548676]
[1738759083981,0.00538513,2789.1,2788.8,3.04597931]
[1738759084184,0.00538513,2789.1,2788.9,4.73600229]
[1738759084387,0.00538513,2789.1,2789.0,0.563]
[1738759084684,0.00538513,2789.1,2789.0,1.1462]
[1738759084981,0.00538513,2789.1,2789.0,5.88220229]
[1738759085183,3.2078,2790.1,2789.0,10.88220229]
[1738759085485,3.2078,2790.5,2789.8,3.04597931]
[1738759085787,3.7801,2790.5,2789.5,6.25377931]
[1738759086382,3.7801,2790.5,2789.7,0.00538513]
[1738759086383,3.2078,2790.2,2789.7,0.00538513]
[1738759086685,0.5964,2790.1,2789.7,0.00538513]
[1738759086986,1.1591,2790.1,2789.7,0.00538513]
[1738759087185,3.2078,2789.9,2789.7,0.00538513]
[1738759087589,0.5964,2790.1,2789.7,0.00538513]
[1738759088979,3.2078,2790.2,2789.7,0.00538513]
[1738759089179,3.2078,2790.2,2789.8,7.67003393]
[1738759089386,3.2078,2790.2,2789.8,8.23503393]
[1738759090789,0.00538513,2790.3,2790.1,3.04597931]
[1738759090988,0.00538513,2790.3,2790.2,0.589]
[1738759091384,0.00538513,2790.3,2790.2,5.21020986]
[1738759092084,1.1912,2791.2,2790.2,10.56860986]
[1738759092387,3.2078,2791.2,2790.8,3.04597931]
[1738759092587,3.8009,2791.7,2791.1,3.04597931]
[1738759092783,3.8009,2791.7,2790.9,0.5939]
[1738759092784,3.2078,2791.7,2791.4,3.04597931]
[1738759093489,3.2078,2791.7,2791.5,4.62197662]
[1738759095492,3.2078,2791.7,2791.4,3.04597931]
[1738759096092,3.2078,2791.7,2791.5,4.59924523]
[1738759096890,0.00537528,2791.8,2791.5,7.80704523]
[1738759097196,3.2078,2792.4,2791.7,3.04597931]
[1738759097389,1.7365,2793.2,2791.6,3.62357931]
[1738759097390,1.7365,2793.2,2792.3,3.04597931]
[1738759097585,3.2078,2793.0,2792.6,3.04597931]
[1738759097890,3.2078,2793.0,2791.6,3.04597931]
[1738759097891,3.2078,2792.7,2791.8,4.58372649]
[1738759098087,3.2078,2791.9,2791.8,4.58372649]
[1738759098391,3.2078,2792.4,2791.7,4.58372649]
[1738759098591,4.9443,2792.3,2791.7,4.58372649]
[1738759098782,4.9443,2792.3,2791.4,7.65020105]
[1738759098989,3.2078,2792.0,2791.4,7.65020105]
[1738759099186,3.2078,2792.0,2791.7,3.04597931]
[1738759099388,0.00537528,2792.5,2791.9,3.2078]
[1738759099589,0.00537528,2792.5,2792.1,3.04597931]
[1738759099791,0.00537528,2792.5,2792.4,3.04597931]
[1738759100191,0.00537528,2792.5,2792.4,7.8056665]
[1738759102094,0.00537528,2792.5,2792.2,3.2078]
[1738759102697,0.00537528,2792.5,2792.4,3.04597931]
[1738759103093,0.00537528,2792.5,2792.3,4.59090155]
[1738759103394,0.00537528,2792.5,2792.2,3.2078]
[1738759103786,0.00537528,2792.5,2791.9,3.2078]
[1738759104190,3.2078,2792.3,2791.8,3.61847931]
[1738759104385,3.2078,2792.3,2791.8,3.04597931]
[1738759104592,0.572,2792.2,2791.8,3.04597931]
[1738759104991,0.572,2792.2,2791.4,0.6088]
[1738759104992,3.2078,2792.0,2791.4,0.6088]
[1738759105195,0.5773,2791.9,2791.4,0.6088]
[1738759105386,0.5773,2791.9,2791.5,4.70323883]
[1738759105896,0.5773,2791.9,2791.4,0.6088]
[1738759106295,3.2078,2791.7,2791.2,3.2078]
[1738759106999,3.2078,2791.7,2790.8,0.5863]
[1738759107295,0.6118,2791.8,2790.6,6.25377931]
[1738759107296,3.2078,2791.4,2790.6,6.25377931]
[1738759108599,3.8098,2791.4,2790.6,6.25377931]
[1738759109394,40.8,2791.3,2790.6,6.25377931]
[1738759109696,40.8,2791.3,2790.7,0.00537528]
[1738759109894,3.2078,2791.2,2790.7,0.00537528]
[1738759110394,0.5881,2791.1,2790.7,0.00537528]
[1738759110894,3.2078,2790.9,2790.7,0.00537528]
[1738759111496,0.5873,2790.8,2789.9,3.2078]
[1738759111702,3.2078,2790.6,2789.7,3.65147931]
[1738759112094,0.5986,2790.7,2789.4,3.5662]
[1738759112095,3.2078,2790.2,2789.4,6.25377931]
[1738759112599,3.2078,2790.2,2789.5,4.70363219]
[1738759112802,3.2078,2790.2,2789.5,4.70900747]
[1738759113399,3.2078,2790.2,2789.5,0.00537528]
[1738759113595,3.2078,2790.2,2789.5,4.67749513]
[1738759113996,3.04597931,2790.6,2789.5,4.67749513]
[1738759113997,3.2078,2789.9,2789.5,4.67749513]
[1738759114203,3.2078,2789.9,2789.5,0.00537528]
[1738759114395,1.1937,2789.8,2789.5,0.00537528]
[1738759114590,1.7506,2789.8,2789.5,0.00537528]
[1738759114897,40.8,2789.7,2789.5,0.00537528]
[1738759115602,1.7506,2789.8,2789.5,0.00537528]
[1738759115603,1.156,2789.8,2789.5,0.00537528]
[1738759117098,3.2078,2789.6,2789.5,0.00537528]
[1738759117299,1.156,2789.8,2789.5,0.00537528]
[1738759117605,0.5569,2789.8,2789.5,0.00537528]
[1738759118604,4.382,2790.2,2789.6,4.72995767]
[1738759119000,1.1742,2790.2,2789.6,4.72995767]
[1738759119300,3.2078,2790.1,2789.5,0.00537528]
[1738759119497,3.7805,2790.1,2789.5,0.00537528]
[1738759119702,4.49708,2790.1,2789.5,0.00537528]
[1738759120100,3.7805,2790.1,2789.5,0.00537528]
[1738759120306,3.2078,2789.7,2789.5,0.00537528]
[1738759120703,11.25377931,2789.7,2788.5,3.04597931]
[1738759121008,3.2078,2789.0,2788.3,3.2078]
[1738759121196,0.5844,2788.9,2788.3,3.2078]
[1738759121401,1.196,2788.9,2788.3,3.2078]
[1738759122008,1.20137528,2788.9,2788.3,3.21317528]
[1738759122399,0.00537528,2788.9,2788.5,3.04597931]
[1738759122599,0.00537528,2788.9,2788.8,3.04597931]
[1738759123110,3.2078,2789.8,2788.8,8.04597931]
[1738759123307,3.2078,2789.8,2789.3,3.04597931]
[1738759124204,3.92445,2789.8,2789.1,3.2078]
[1738759124407,3.21317528,2789.8,2789.1,3.2078]
[1738759125007,3.2078,2789.3,2788.5,0.5716]
[1738759125203,1.1614,2789.2,2788.5,0.5716]
[1738759125414,3.2078,2789.0,2788.4,3.04597931]
[1738759128606,3.2078,2788.9,2788.5,4.71243948]
[1738759128906,3.2078,2789.0,2788.7,3.04597931]
[1738759130807,3.2078,2789.1,2788.8,5.28309952]
[1738759131010,3.2078,2789.1,2788.8,0.5527]
[1738759131309,5.1948,2789.4,2788.7,3.04597931]
[1738759131515,3.2078,2789.0,2788.7,3.04597931]
[1738759133712,3.2078,2789.0,2788.4,4.20407931]
[1738759134310,3.2078,2789.0,2788.5,4.75316563]
[1738759134519,1.1744,2788.9,2788.4,4.20407931]
[1738759134711,40.8,2788.8,2788.4,4.20407931]
[1738759136620,40.8,2788.8,2788.3,3.21317528]
[1738759138315,3.2078,2788.5,2788.3,0.00537528]
[1738759138719,0.5771,2788.4,2788.3,0.00537528]
[1738759139312,41.3771,2788.4,2788.3,0.00537528]
[1738759139812,3.2078,2788.8,2788.3,0.00537528]
[1738759140012,3.2078,2789.2,2788.7,3.04597931]
[1738759140815,3.2078,2789.2,2789.0,3.04597931]
[1738759141212,3.2078,2789.2,2789.1,0.6059]
[1738759141418,0.5708,2789.6,2789.1,5.20727451]
[1738759142818,3.2078,2789.5,2789.1,0.6059]
[1738759144025,3.2078,2789.5,2789.0,3.04597931]
[1738759144026,3.2078,2789.5,2788.7,6.25377931]
[1738759144524,3.2078,2789.5,2788.8,4.6834576]
[1738759145029,0.5708,2789.6,2789.0,3.04597931]
[1738759145323,0.5708,2789.6,2789.3,3.04597931]
[1738759146225,0.5708,2789.6,2789.0,3.04597931]
[1738759147024,0.5708,2789.6,2789.0,6.25377931]
[1738759147226,0.5727,2789.7,2789.0,6.25377931]
[1738759147525,0.5727,2789.7,2789.0,10.9814124]
[1738759147723,44.01317528,2789.8,2789.3,3.04597931]
[1738759148924,44.01317528,2789.8,2789.0,6.25377931]
[1738759149324,44.01317528,2789.8,2789.1,4.76138742]
[1738759149536,44.01317528,2789.8,2789.3,3.04597931]
[1738759151729,0.00537528,2789.8,2789.6,3.04597931]
[1738759152032,3.2078,2790.5,2789.7,3.2078]
[1738759152233,40.8,2790.5,2790.4,3.04597931]
[1738759152532,3.2078,2790.5,2790.1,3.04597931]
[1738759152833,3.2078,2790.5,2789.8,3.04597931]
[1738759153331,0.00537528,2790.4,2789.9,0.00537528]
[1738759153520,0.00537528,2790.4,2790.1,3.04597931]
[1738759154228,0.00537528,2790.4,2789.9,4.72751358]
[1738759155626,3.2078,2790.2,2789.9,0.00537528]
[1738759156031,0.6172,2790.1,2789.9,0.00537528]
[1738759158630,40.8,2790.0,2789.9,0.00537528]
[1738759159638,2.5988,2790.3,2789.9,0.00537528]
[1738759160435,3.2078,2790.2,2789.9,0.00537528]
[1738759160940,0.5982,2790.1,2789.9,0.00537528]
[1738759162040,0.5982,2790.1,2789.2,3.04597931]
[1738759162244,3.2078,2789.8,2789.2,3.04597931]